bitfinex-derivatives/quotes_BTCF0:USTF0_20240903
["timestamp","ask_amount","ask_price","bid_price","bid_amount"]
[1725332369217,1.71591998,59352.0,59351.0,0.0008]
[1725332370221,1.62591998,59352.0,59351.0,0.0008]
[1725332370610,1.71591998,59352.0,59351.0,0.0008]
[1725332374021,1.62591998,59352.0,59351.0,0.0008]
[1725332374808,1.62591998,59352.0,59351.0,0.068192]
[1725332375021,1.55852898,59352.0,59351.0,0.068192]
[1725332376512,1.55852898,59352.0,59351.0,0.11874451]
[1725332378921,1.55852898,59352.0,59351.0,0.068192]
[1725332379118,1.55852898,59352.0,59351.0,0.11874451]
[1725332380025,1.55852898,59352.0,59351.0,0.068192]
[1725332388823,0.37852898,59352.0,59351.0,1.173672]
[1725332391633,0.37852898,59352.0,59351.0,0.13553613]
[1725332391839,0.01772898,59352.0,59351.0,0.13553613]
[1725332392221,1.19772898,59352.0,59351.0,0.13553613]
[1725332392628,1.55852898,59352.0,59351.0,0.13553613]
[1725332392823,1.55852898,59352.0,59351.0,0.068192]
[1725332393533,1.62591998,59352.0,59351.0,0.068192]
[1725332394934,1.62591998,59352.0,59351.0,0.11869219]
[1725332395331,1.62591998,59352.0,59351.0,0.11869665]
[1725332395735,1.71591998,59352.0,59351.0,0.05130465]
[1725332396626,1.71591998,59352.0,59351.0,0.0008]
[1725332397229,1.62591998,59352.0,59351.0,0.0908]
[1725332398840,1.62591998,59352.0,59351.0,0.0008]
[1725332399639,1.62591998,59352.0,59351.0,0.0908]
[1725332400936,1.62891998,59352.0,59351.0,0.0908]
[1725332401130,1.56152898,59352.0,59351.0,1.263672]
[1725332402236,1.56152898,59352.0,59351.0,0.573672]
[1725332402436,1.56152898,59352.0,59351.0,0.068192]
[1725332402741,1.56452898,59352.0,59351.0,0.068192]
[1725332403043,1.63191998,59352.0,59351.0,0.13558003]
[1725332403642,1.63191998,59352.0,59351.0,0.06818803]
[1725332403947,1.63191998,59352.0,59351.0,0.0008]
[1725332404743,1.72191998,59352.0,59351.0,0.0008]
[1725332405534,1.78931098,59352.0,59351.0,0.0008]
[1725332406343,1.78031098,59352.0,59351.0,0.0008]
[1725332406546,1.79431098,59352.0,59351.0,0.0008]
[1725332406747,1.78031098,59352.0,59351.0,0.0008]
[1725332406938,1.79431098,59352.0,59351.0,0.0008]
[1725332407333,1.78031098,59352.0,59351.0,0.0008]
[1725332407540,1.79431098,59352.0,59351.0,0.0008]
[1725332407743,1.78031098,59352.0,59351.0,0.0008]
[1725332407942,1.79431098,59352.0,59351.0,0.0008]
[1725332409745,1.63691998,59352.0,59351.0,0.0908]
[1725332410141,1.27611998,59352.0,59351.0,0.0908]
[1725332411251,1.63691998,59352.0,59351.0,0.0908]
[1725332411451,1.72691998,59352.0,59351.0,0.0908]
[1725332412339,1.72691998,59352.0,59351.0,0.0008]
[1725332415656,1.74691998,59352.0,59351.0,0.0008]
[1725332427258,1.72691998,59352.0,59351.0,0.0008]
[1725332429868,1.63691998,59352.0,59351.0,0.0008]
[1725332430966,1.63691998,59352.0,59351.0,0.068192]
[1725332432568,1.56952898,59352.0,59351.0,0.068192]
[1725332434266,1.56952898,59352.0,59351.0,0.11873876]
[1725332434468,1.56952898,59352.0,59351.0,0.068192]
[1725332435070,1.56952898,59352.0,59351.0,0.13558556]
[1725332435265,1.56952898,59352.0,59351.0,0.068192]
[1725332435475,1.56952898,59352.0,59351.0,0.13558556]
[1725332435674,1.56952898,59352.0,59351.0,0.158192]
[1725332436068,1.20872898,59352.0,59351.0,0.22556476]
[1725332436574,1.20872898,59352.0,59351.0,0.158192]
[1725332439170,1.20872898,59352.0,59351.0,0.663672]
[1725332439374,1.20872898,59352.0,59351.0,1.263672]
[1725332439576,0.00444408,59355.0,59351.0,1.263672]
[1725332439577,0.0002527,59355.0,59354.0,0.067388]
[1725332439777,0.0002527,59355.0,59354.0,0.157788]
[1725332439969,0.0002527,59355.0,59354.0,0.663228]
[1725332440678,0.8702527,59355.0,59354.0,1.263228]
[1725332441569,0.8842527,59355.0,59354.0,1.331616]
[1725332441767,0.0142527,59355.0,59354.0,1.331616]
[1725332441970,0.0282527,59355.0,59354.0,1.332616]
[1725332442374,0.87,59361.0,59360.0,0.067382]
[1725332442563,0.87,59361.0,59360.0,1.263182]
[1725332443675,0.871,59361.0,59360.0,1.264182]
[1725332443872,0.001,59361.0,59360.0,0.158782]
[1725332445165,0.001,59361.0,59360.0,0.159782]
[1725332445975,0.001,59361.0,59360.0,0.16390999]
[1725332447672,0.001,59361.0,59360.0,1.26930999]
[1725332450176,0.001,59361.0,59360.0,0.66930999]
[1725332450485,0.001,59361.0,59360.0,0.16390999]
[1725332450971,0.001,59361.0,59360.0,0.66930999]
[1725332451168,0.001,59361.0,59360.0,1.26930999]
[1725332451580,0.001,59361.0,59360.0,0.66930999]
[1725332453969,0.001,59361.0,59360.0,1.26930999]
[1725332454875,0.001,59361.0,59360.0,0.16390999]
[1725332455477,0.3618,59361.0,59360.0,0.069782]
[1725332455679,0.3618,59361.0,59360.0,0.159782]
[1725332456184,1.2318,59361.0,59360.0,0.159782]
[1725332459383,1.23593329,59361.0,59360.0,0.159782]
[1725332459586,1.23593329,59361.0,59360.0,0.069782]
[1725332459878,1.30331329,59361.0,59360.0,0.0924]
[1725332460181,1.30331329,59361.0,59360.0,0.0024]
[1725332460182,1.35501569,59361.0,59360.0,0.0024]
[1725332460578,1.28763569,59361.0,59360.0,0.0024]
[1725332461873,1.28763569,59361.0,59360.0,0.0924]
[1725332462083,1.28763569,59361.0,59360.0,0.0024]
[1725332463085,1.28763586,59361.0,59360.0,0.0024]
[1725332465488,1.45352339,59361.0,59360.0,0.0024]
[1725332466391,1.45252339,59361.0,59360.0,0.0024]
[1725332466581,1.28663586,59361.0,59360.0,0.0024]
[1725332466789,1.23493329,59361.0,59360.0,0.0024]
[1725332468178,1.23493329,59361.0,59360.0,0.069782]
[1725332468179,1.2308,59361.0,59360.0,0.069782]
[1725332468684,0.3610527,59366.0,59365.0,0.067376]
[1725332468885,0.3610527,59366.0,59365.0,0.067776]
[1725332469191,1.2310527,59366.0,59365.0,0.067776]
[1725332470287,1.30328414,59366.0,59365.0,0.0004]
[1725332470483,1.30428414,59366.0,59365.0,0.0014]
[1725332470884,1.30428414,59366.0,59365.0,0.0024]
[1725332471281,1.30428414,59366.0,59355.0,0.05463678]
[1725332471282,0.067385,59357.0,59355.0,0.05463678]
[1725332471488,0.623986,59356.0,59355.0,0.0002527]
[1725332471893,1.729426,59356.0,59355.0,0.0002527]
[1725332472094,1.493986,59356.0,59355.0,0.0002527]
[1725332472293,1.493986,59356.0,59355.0,0.0012527]
[1725332472294,2.499526,59356.0,59355.0,0.0012527]
[1725332472500,2.327712,59356.0,59355.0,0.0022527]
[1725332472795,2.327712,59356.0,59345.0,0.07127276]
[1725332472796,0.067397,59346.0,59345.0,0.0039]
[1725332473095,0.7216,59346.0,59337.0,0.21048408]
[1725332473297,0.3598,59338.0,59337.0,0.21048408]
[1725332473488,1.2298,59338.0,59337.0,0.16]
[1725332474208,0.87,59338.0,59337.0,0.16]
[1725332474899,0.3608,59339.0,59337.0,0.16]
[1725332475595,0.3608,59339.0,59337.0,0.163]
[1725332475792,0.871,59338.0,59337.0,0.163]
[1725332476599,0.87,59338.0,59337.0,0.163]
[1725332477992,0.87,59338.0,59337.0,0.16]
[1725332478198,0.871,59338.0,59337.0,0.163]
[1725332479086,0.0014,59338.0,59337.0,0.230408]
[1725332483895,0.8714,59338.0,59337.0,0.230408]
[1725332485491,0.8714,59338.0,59337.0,0.163]
[1725332485888,0.938807,59338.0,59337.0,0.003]
[1725332488701,2.207514,59338.0,59337.0,0.003]
[1725332488906,2.235407,59338.0,59337.0,0.003]
[1725332489399,2.302814,59338.0,59337.0,0.003]
[1725332489602,2.235407,59338.0,59327.0,0.0039]
[1725332489799,0.429018,59328.0,59325.0,0.227421]
[1725332490204,0.0008,59326.0,59325.0,0.227421]
[1725332490407,0.87,59326.0,59325.0,0.23211779]
[1725332490798,0.3616,59328.0,59327.0,0.067419]
[1725332492099,0.3656,59328.0,59327.0,0.067419]
[1725332492595,0.3676,59328.0,59327.0,0.067419]
[1725332492803,0.3686,59328.0,59327.0,0.001]
[1725332493004,0.436018,59328.0,59327.0,0.001]
[1725332493409,1.306018,59328.0,59327.0,0.001]
[1725332497204,1.2386,59328.0,59327.0,0.068419]
[1725332497404,1.2386,59328.0,59327.0,0.268219]
[1725332497607,0.3686,59328.0,59327.0,0.268219]
[1725332498903,0.3686,59328.0,59327.0,0.001]
[1725332499713,1.2386,59328.0,59327.0,0.001]
[1725332500416,1.306018,59328.0,59327.0,0.001]
[1725332505414,1.2386,59328.0,59327.0,0.161]
[1725332505611,0.3686,59328.0,59327.0,0.228419]
[1725332505913,0.0078,59328.0,59327.0,0.228419]
[1725332506215,0.8778,59328.0,59327.0,0.426419]
[1725332508710,0.8778,59328.0,59327.0,0.228419]
[1725332508907,0.8778,59328.0,59327.0,0.001]
[1725332509205,0.8778,59328.0,59327.0,0.05141015]
[1725332511121,0.8778,59328.0,59327.0,0.05142529]
[1725332511523,0.8778,59328.0,59327.0,0.11884429]
[1725332511713,0.8778,59328.0,59327.0,0.068419]
[1725332511915,0.945218,59328.0,59327.0,0.001]
[1725332520031,0.945218,59328.0,59327.0,0.05143454]
[1725332520233,0.945218,59328.0,59327.0,0.001]
[1725332520539,0.945218,59328.0,59327.0,0.05143454]
[1725332521235,0.8778,59328.0,59327.0,0.068419]
[1725332521824,0.8778,59328.0,59327.0,0.11894473]
[1725332522336,0.945218,59328.0,59327.0,0.001]
[1725332522531,0.945218,59328.0,59327.0,0.05152737]
[1725332524136,0.8778,59328.0,59327.0,0.068419]
[1725332524431,0.0039,59334.0,59333.0,0.067412]
[1725332524631,0.3610527,59343.0,59333.0,0.067412]
[1725332524632,0.071303,59341.0,59333.0,0.3608]
[1725332524827,0.3610527,59343.0,59335.0,0.06735792]
[1725332524828,0.067407,59338.0,59335.0,0.06735792]
[1725332525030,0.87,59340.0,59335.0,0.06735792]
[1725332525031,0.067408,59337.0,59335.0,0.06735792]
[1725332525537,0.067408,59337.0,59334.0,0.13476792]
[1725332525737,0.067408,59337.0,59335.0,0.0016]
[1725332525935,0.067408,59337.0,59335.0,0.0026]
[1725332526537,0.067408,59337.0,59335.0,0.0016]
[1725332526734,0.067408,59337.0,59335.0,0.0026]
[1725332526735,0.004,59337.0,59335.0,0.0026]
[1725332526938,0.004,59337.0,59335.0,0.07001]
[1725332527433,0.004,59337.0,59335.0,0.0026]
[1725332527639,0.004,59337.0,59336.0,0.165009]
[1725332527937,0.007,59337.0,59336.0,0.165009]
[1725332529140,0.003,59337.0,59336.0,0.166009]
[1725332530136,0.003,59337.0,59336.0,0.326009]
[1725332530939,0.937405,59340.0,59336.0,0.326009]
[1725332531140,0.003,59337.0,59336.0,0.327009]
[1725332531927,1.03,59340.0,59336.0,0.001]
[1725332532239,1.033,59340.0,59336.0,0.002]
[1725332532739,1.03,59340.0,59336.0,0.001]
[1725332532936,0.070408,59337.0,59336.0,0.002]
[1725332534733,0.067408,59337.0,59336.0,0.002]
[1725332535635,0.070408,59337.0,59336.0,0.002]
[1725332539545,0.070408,59337.0,59336.0,0.069409]
[1725332541742,0.003,59337.0,59336.0,0.069409]
[1725332542538,0.003,59337.0,59336.0,0.11990971]
[1725332542742,0.003,59337.0,59336.0,0.27990971]
[1725332542948,0.003,59337.0,59336.0,0.27986914]
[1725332543248,0.003,59337.0,59336.0,0.229409]
[1725332543544,0.003,59337.0,59336.0,0.2798716]
[1725332545644,0.003,59337.0,59336.0,0.229409]
[1725332545841,0.003,59337.0,59336.0,0.11987719]
[1725332547742,0.003,59337.0,59336.0,0.229409]
[1725332547943,0.003,59337.0,59336.0,0.735009]
[1725332548145,0.003,59337.0,59336.0,0.80236692]
[1725332548743,0.003,59337.0,59336.0,0.735009]
[1725332548942,0.003,59337.0,59336.0,0.29671245]
[1725332549347,0.003,59337.0,59336.0,0.229409]
[1725332549745,0.003,59337.0,59336.0,0.735009]
[1725332549948,0.003,59337.0,59336.0,1.695809]
[1725332550754,0.003,59337.0,59336.0,1.763218]
[1725332551255,0.0002527,59343.0,59342.0,0.067402]
[1725332551445,0.0039,59350.0,59349.0,0.067394]
[1725332551639,0.36567424,59355.0,59354.0,0.067388]
[1725332551844,0.36567424,59355.0,59354.0,0.227388]
[1725332552247,1.23567424,59355.0,59354.0,0.227388]
[1725332552654,1.2308,59355.0,59354.0,0.227388]
[1725332553153,0.87,59355.0,59354.0,0.227388]
[1725332554152,0.87,59355.0,59354.0,0.228388]
[1725332554153,0.871,59355.0,59354.0,0.228388]
[1725332554652,0.871,59355.0,59354.0,0.229388]
[1725332557552,1.2318,59355.0,59354.0,0.229388]
[1725332558359,2.564627,59355.0,59354.0,0.002]
[1725332558658,2.702014,59355.0,59354.0,0.002]
[1725332559450,2.632014,59355.0,59354.0,0.002]
[1725332560759,2.70669339,59355.0,59354.0,0.002]
[1725332562360,1.87930639,59355.0,59354.0,0.002]
[1725332562571,2.63930639,59355.0,59354.0,0.002]
[1725332563559,2.70669339,59355.0,59354.0,0.002]
[1725332563766,2.63930639,59355.0,59354.0,0.002]
[1725332568365,1.53386639,59355.0,59354.0,0.002]
[1725332568563,1.37386639,59355.0,59354.0,0.002]
[1725332569763,1.37386639,59355.0,59354.0,0.0024]
[1725332570668,1.37386639,59355.0,59354.0,0.1624]
[1725332571464,1.48599749,59355.0,59354.0,0.1624]
[1725332572776,1.48599757,59355.0,59354.0,0.1624]
[1725332573858,1.34861057,59355.0,59354.0,0.229788]
[1725332574757,1.53043821,59355.0,59354.0,0.229788]
[1725332575173,1.47001636,59355.0,59354.0,0.229788]
[1725332575368,1.53043484,59355.0,59354.0,0.229788]
[1725332575677,1.47001636,59355.0,59354.0,0.229788]
[1725332575874,1.28818872,59355.0,59354.0,0.229788]
[1725332576668,1.47001636,59355.0,59354.0,0.229788]
[1725332576872,1.28818872,59355.0,59354.0,0.229788]
[1725332577172,0.92270933,59355.0,59354.0,0.229788]
[1725332577477,0.92270226,59355.0,59354.0,0.735228]
[1725332577770,0.92270226,59355.0,59354.0,1.335228]
[1725332577771,0.05270226,59355.0,59354.0,1.335228]
[1725332578579,0.05269965,59355.0,59354.0,1.763416]
[1725332578764,0.0039,59359.0,59358.0,0.067384]
[1725332579076,0.0002527,59360.0,59359.0,0.067383]
[1725332579265,0.0002527,59360.0,59359.0,0.573183]
[1725332579462,0.0002527,59360.0,59359.0,1.173183]
[1725332581374,0.0002527,59360.0,59359.0,1.174183]
[1725332581668,0.0002527,59360.0,59359.0,1.175183]
[1725332581869,0.0002527,59360.0,59359.0,1.17994036]
[1725332583170,0.0002527,59360.0,59359.0,1.54074036]
[1725332583567,0.0002527,59360.0,59359.0,0.94074036]
[1725332584982,0.0002527,59360.0,59359.0,0.57894036]
[1725332585275,0.0002527,59360.0,59359.0,0.57994036]
[1725332585891,0.0002527,59360.0,59359.0,0.94074036]
[1725332586579,0.05194686,59360.0,59359.0,0.94074036]
[1725332587068,0.05194686,59360.0,59359.0,0.43534036]
[1725332589882,0.05194686,59360.0,59359.0,1.54074036]
[1725332594681,0.0002527,59360.0,59359.0,1.54074036]
[1725332601583,0.0002527,59360.0,59359.0,0.94074036]
[1725332601982,0.05194663,59360.0,59359.0,0.94074036]
[1725332604881,0.05194626,59360.0,59359.0,0.94074036]
[1725332605989,0.05194626,59360.0,59359.0,0.43534036]
[1725332607991,0.05194626,59360.0,59359.0,0.52534036]
[1725332609693,0.0002527,59360.0,59359.0,0.52534036]
[1725332610795,0.0002527,59360.0,59359.0,0.00715736]
[1725332611001,0.0676347,59360.0,59359.0,0.06979671]
[1725332611287,0.0676347,59360.0,59359.0,0.0024]
[1725332611495,0.1637347,59360.0,59359.0,0.0024]
[1725332611691,0.2311167,59360.0,59359.0,0.0024]
[1725332611881,0.3911167,59360.0,59359.0,0.0024]
[1725332612281,0.3911167,59360.0,59350.0,0.05054758]
[1725332612282,2.2317527,59360.0,59350.0,0.05054758]
[1725332612490,2.2317527,59360.0,59349.0,0.3239527]
[1725332612491,0.067393,59350.0,59349.0,0.3239527]
[1725332612696,0.067793,59350.0,59349.0,0.3239527]
[1725332612896,0.165493,59350.0,59349.0,0.3239527]
[1725332613100,1.035493,59350.0,59349.0,0.4839527]
[1725332613689,1.035493,59350.0,59349.0,0.4849527]
[1725332615305,1.04023657,59350.0,59349.0,0.4849527]
[1725332615502,1.13923657,59350.0,59349.0,0.4849527]
[1725332615693,1.14123657,59350.0,59349.0,0.4849527]
[1725332615894,1.14123657,59350.0,59349.0,0.1612527]
[1725332616097,1.14223657,59350.0,59349.0,0.1622527]
[1725332618709,1.14223657,59350.0,59349.0,0.0022527]
[1725332619803,1.14223657,59350.0,59349.0,0.1622527]
[1725332620390,0.267493,59350.0,59349.0,0.1622527]
[1725332620997,1.137493,59350.0,59349.0,0.1622527]
[1725332622403,1.136493,59350.0,59349.0,0.1622527]
[1725332622592,1.135493,59350.0,59349.0,0.1612527]
[1725332622795,1.136493,59350.0,59349.0,0.1622527]
[1725332623607,1.136493,59350.0,59349.0,0.2296467]
[1725332624001,1.038793,59350.0,59349.0,0.2296467]
[1725332626502,1.037793,59350.0,59349.0,0.2286467]
[1725332626807,1.038793,59350.0,59349.0,0.2296467]
[1725332630298,0.939793,59350.0,59349.0,0.2296467]
[1725332631913,0.939793,59350.0,59349.0,0.1596467]
[1725332632105,0.940793,59350.0,59349.0,0.1606467]
[1725332632712,0.938793,59350.0,59349.0,0.1586467]
[1725332632904,0.938793,59350.0,59349.0,0.1596467]
[1725332632905,0.939793,59350.0,59349.0,0.1596467]
[1725332633109,0.938793,59350.0,59349.0,0.1586467]
[1725332633308,0.939793,59350.0,59349.0,0.1596467]
[1725332634902,0.939793,59350.0,59349.0,0.0696467]
[1725332635104,0.939793,59350.0,59349.0,0.1596467]
[1725332637328,0.939793,59350.0,59346.0,0.00488277]
[1725332637329,0.067404,59340.0,59338.0,0.05054758]
[1725332637510,0.067404,59340.0,59329.0,0.0039]
[1725332637511,0.067409,59336.0,59329.0,0.0039]
[1725332637713,0.067809,59336.0,59330.0,0.09]
[1725332638011,0.937409,59336.0,59330.0,0.09]
[1725332638812,0.938409,59336.0,59330.0,0.09]
[1725332639210,0.937409,59336.0,59330.0,0.09]
[1725332639811,0.937409,59336.0,59335.0,0.0026]
[1725332639812,0.938409,59336.0,59335.0,0.0026]
[1725332641516,0.94315358,59336.0,59335.0,0.0026]
[1725332642013,0.94315358,59336.0,59335.0,0.1626]
[1725332647015,0.002,59336.0,59335.0,0.23001]
[1725332647215,0.002,59336.0,59335.0,0.23486187]
[1725332647524,0.0004,59340.0,59337.0,0.067408]
[1725332647717,0.0004,59340.0,59339.0,0.21078398]
[1725332648025,0.8704,59340.0,59339.0,0.27818898]
[1725332648220,0.8704,59340.0,59339.0,0.227805]
[1725332648819,0.8714,59340.0,59339.0,0.227805]
[1725332649018,0.8734,59340.0,59339.0,0.228805]
[1725332649415,0.8724,59340.0,59339.0,0.228805]
[1725332649615,0.8734,59340.0,59339.0,0.229805]
[1725332651222,0.8734,59340.0,59339.0,0.28018898]
[1725332651821,0.8734,59340.0,59339.0,0.229805]
[1725332654731,0.8734,59340.0,59339.0,0.2802006]
[1725332655525,0.0034,59340.0,59339.0,0.229805]
[1725332656534,0.0034,59340.0,59339.0,0.29720171]
[1725332656742,0.0034,59340.0,59339.0,1.335365]
[1725332657128,0.0034,59340.0,59339.0,1.41956808]
[1725332658535,0.0039,59346.0,59345.0,0.067399]
[1725332658744,0.87,59349.0,59348.0,0.067395]
[1725332659041,0.87,59349.0,59348.0,0.227795]
[1725332659223,0.0039,59356.0,59350.0,0.067393]
[1725332659426,0.0041527,59356.0,59350.0,0.067793]
[1725332659628,0.87,59355.0,59350.0,0.067393]
[1725332659829,0.0041527,59356.0,59350.0,0.067393]
[1725332660437,0.87,59355.0,59350.0,0.067393]
[1725332660636,0.067391,59353.0,59349.0,0.06718908]
[1725332660834,0.1604,59351.0,59348.0,0.001]
[1725332661228,0.067394,59349.0,59348.0,0.001]
[1725332661447,0.227792,59351.0,59350.0,0.001]
[1725332661633,0.588592,59351.0,59350.0,0.001]
[1725332661935,0.64030619,59351.0,59350.0,0.001]
[1725332662136,0.64030613,59351.0,59350.0,0.001]
[1725332663126,0.64516582,59351.0,59350.0,0.001]
[1725332663633,0.59345169,59351.0,59350.0,0.002]
[1725332664939,0.43345169,59351.0,59350.0,0.002]
[1725332667226,1.30345169,59351.0,59350.0,0.002]
[1725332670139,1.46345169,59351.0,59350.0,0.002]
[1725332675652,1.53084369,59351.0,59350.0,0.002]
[1725332676761,1.58255975,59351.0,59350.0,0.002]
[1725332677771,1.73779016,59351.0,59350.0,0.002]
[1725332677974,0.067405,59339.0,59338.0,0.0039]
[1725332678168,0.067405,59339.0,59331.0,0.067414]
[1725332678169,0.57251606,59339.0,59331.0,0.067414]
[1725332678367,0.0008,59336.0,59331.0,0.067414]
[1725332678568,0.8708,59336.0,59331.0,0.067414]
[1725332678763,0.92251606,59336.0,59331.0,0.067414]
[1725332679166,0.92151606,59336.0,59331.0,0.067414]
[1725332679365,0.8698,59336.0,59331.0,0.067414]
[1725332679570,1.164618,59336.0,59328.0,0.3237]
[1725332679869,1.164618,59336.0,59335.0,0.0026]
[1725332680063,1.004618,59336.0,59335.0,0.0026]
[1725332680264,0.067416,59330.0,59329.0,0.16]
[1725332680465,0.427216,59330.0,59329.0,0.16]
[1725332681963,0.427216,59330.0,59329.0,0.162]
[1725332682567,0.429216,59330.0,59329.0,0.162]
[1725332683865,0.429216,59330.0,59329.0,0.002]
[1725332685978,0.430016,59330.0,59329.0,0.002]
[1725332686280,0.430016,59330.0,59329.0,0.162]
[1725332687976,0.430016,59330.0,59329.0,0.229417]
[1725332687977,0.3636,59330.0,59329.0,0.229417]
[1725332690380,0.3636,59330.0,59329.0,0.2797902]
[1725332691268,0.3636,59330.0,59329.0,0.229417]
[1725332691579,0.3636,59330.0,59329.0,0.2797902]
[1725332691776,0.3636,59330.0,59329.0,0.229417]
[1725332692274,0.3636,59330.0,59329.0,0.002]
[1725332693767,0.431016,59330.0,59329.0,0.002]
[1725332696375,0.431016,59330.0,59329.0,0.162]
[1725332696572,0.3636,59330.0,59329.0,0.229417]
[1725332700381,0.0028,59330.0,59329.0,0.229417]
[1725332700582,0.8739,59337.0,59336.0,0.067409]
[1725332700884,0.87,59337.0,59336.0,0.227409]
[1725332701285,0.87,59337.0,59336.0,0.13464798]
[1725332701779,0.871,59337.0,59336.0,0.23564798]
[1725332702175,0.871,59337.0,59336.0,0.101]
[1725332702483,0.871,59337.0,59336.0,0.001]
[1725332702674,0.938408,59337.0,59336.0,0.001]
[1725332703276,0.938408,59337.0,59336.0,0.05144583]
[1725332703575,0.938408,59337.0,59336.0,0.001]
[1725332703887,0.938408,59337.0,59336.0,0.05145742]
[1725332704485,0.938408,59337.0,59336.0,0.001]
[1725332708079,1.660008,59337.0,59336.0,0.001]
[1725332711783,1.299208,59337.0,59336.0,0.05145742]
[1725332713590,1.299208,59337.0,59336.0,0.001]
[1725332713892,1.35093343,59337.0,59336.0,0.001]
[1725332714290,1.41137415,59337.0,59336.0,0.001]
[1725332714485,1.35093343,59337.0,59336.0,0.001]
[1725332714685,1.4113742,59337.0,59336.0,0.001]
[1725332714896,1.35093343,59337.0,59336.0,0.001]
[1725332716086,1.41137416,59337.0,59336.0,0.001]
[1725332716392,1.299208,59337.0,59336.0,0.001]
[1725332719497,1.366616,59337.0,59336.0,0.001]
[1725332723901,1.456616,59337.0,59336.0,0.001]
[1725332728818,1.50834349,59337.0,59336.0,0.001]
[1725332729508,1.56878686,59337.0,59336.0,0.001]
[1725332729709,1.50137886,59337.0,59336.0,0.001]
[1725332729906,1.50137671,59337.0,59336.0,0.001]
[1725332730910,1.44093549,59337.0,59336.0,0.001]
[1725332731206,1.50137947,59337.0,59336.0,0.001]
[1725332731414,1.50137902,59337.0,59336.0,0.001]
[1725332732910,1.41137902,59337.0,59336.0,0.001]
[1725332733618,1.35093549,59337.0,59336.0,0.001]
[1725332733811,1.41137709,59337.0,59336.0,0.001]
[1725332734207,1.35093549,59337.0,59336.0,0.001]
[1725332734608,1.41137656,59337.0,59336.0,0.001]
[1725332736617,1.35093549,59337.0,59336.0,0.001]
[1725332737118,1.2318,59337.0,59336.0,0.001]
[1725332738118,1.2318,59337.0,59336.0,0.05153382]
[1725332738324,1.2318,59337.0,59336.0,0.068409]
[1725332738516,0.871,59337.0,59336.0,0.068409]
[1725332740521,0.001,59337.0,59336.0,0.068409]
[1725332741216,0.001,59337.0,59336.0,0.11893799]
[1725332741217,0.4518,59337.0,59336.0,0.11893799]
[1725332741416,0.4518,59337.0,59336.0,0.068409]
[1725332741812,1.3218,59337.0,59336.0,0.068409]
[1725332742012,1.2318,59337.0,59336.0,0.068409]
[1725332742419,1.2318,59337.0,59336.0,0.158409]
[1725332743124,1.2318,59337.0,59336.0,0.001]
[1725332743321,1.299208,59337.0,59336.0,0.001]
[1725332746031,1.299208,59337.0,59336.0,0.091]
[1725332753627,1.35093123,59337.0,59336.0,0.001]
[1725332756826,1.35093266,59337.0,59336.0,0.001]
[1725332759129,1.299208,59337.0,59336.0,0.001]
[1725332767144,1.35093348,59337.0,59336.0,0.001]
[1725332767340,1.28352548,59337.0,59332.0,0.067413]
[1725332767648,0.067412,59333.0,59332.0,0.09]
[1725332767831,0.11913748,59333.0,59332.0,0.09]
[1725332768140,0.19295631,59333.0,59332.0,0.09]
[1725332768533,0.3757396,59333.0,59332.0,0.09]
[1725332768733,0.3757396,59333.0,59330.0,0.067415]
[1725332768734,0.067417,59329.0,59328.0,0.101]
[1725332768937,0.14123583,59329.0,59328.0,0.101]
[1725332769142,0.19296131,59329.0,59328.0,0.101]
[1725332769339,0.28275204,59329.0,59328.0,0.101]
[1725332769743,0.32401912,59329.0,59328.0,0.101]
[1725332769947,0.3757446,59329.0,59328.0,0.101]
[1725332770135,0.3747446,59329.0,59328.0,0.101]
[1725332770352,0.19096131,59329.0,59328.0,0.101]
[1725332770648,0.19096131,59329.0,59328.0,0.191]
[1725332771051,0.20196131,59329.0,59328.0,0.192]
[1725332772047,0.21296131,59329.0,59328.0,0.193]
[1725332772252,0.27340376,59329.0,59328.0,0.193]
[1725332772453,0.26240376,59329.0,59328.0,0.192]
[1725332772652,0.27340376,59329.0,59328.0,0.193]
[1725332773258,0.26940376,59329.0,59328.0,0.193]
[1725332774048,0.1889933,59329.0,59328.0,0.193]
[1725332775058,0.1897933,59329.0,59328.0,0.103]
[1725332776155,0.09012298,59329.0,59328.0,0.103]
[1725332778248,0.1897933,59329.0,59328.0,0.103]
[1725332781059,0.09012298,59329.0,59328.0,0.103]
[1725332781451,0.1897933,59329.0,59328.0,0.103]
[1725332782059,0.27612607,59329.0,59328.0,0.103]
[1725332782254,0.39840834,59329.0,59328.0,0.103]
[1725332782455,0.27612607,59329.0,59328.0,0.103]
[1725332784954,0.27612607,59329.0,59328.0,0.193]
[1725332789163,0.09012298,59329.0,59328.0,0.193]
[1725332790958,0.1195155,59329.0,59328.0,0.260418]
[1725332791159,0.0198,59329.0,59328.0,0.260418]
[1725332791463,0.10289875,59329.0,59328.0,0.260418]
[1725332791852,0.0198,59329.0,59328.0,0.260418]
[1725332794555,0.0198,59329.0,59328.0,0.170418]
[1725332794759,0.0198,59329.0,59328.0,0.260418]
[1725332795262,0.0039,59336.0,59335.0,0.06741]
[1725332795562,0.3608,59352.0,59335.0,0.06741]
[1725332795563,0.06645925,59339.0,59335.0,0.4508]
[1725332795770,0.06671195,59341.0,59340.0,0.09]
[1725332795958,0.0002527,59341.0,59340.0,0.95636]
[1725332796158,0.0002527,59341.0,59340.0,1.023764]
[1725332796459,0.0002527,59341.0,59340.0,1.623764]
[1725332796960,0.0002527,59341.0,59340.0,1.533764]
[1725332797162,0.0002527,59341.0,59340.0,1.623764]
[1725332797356,0.0072527,59341.0,59340.0,1.624764]
[1725332799062,0.0002527,59341.0,59340.0,1.624764]
[1725332799267,0.0002527,59341.0,59340.0,1.024764]